[Event "CCT Airthings Masters Play-In 2023"]
[Site "Online"]
[Date "2023.02.03"]
[Round "1"]
[White "Beca95"]
[Black "Sadhwani, Raunak"]
[Result "1/2-1/2"]
[ECO "E33"]
[WhiteElo "2528"]
[BlackElo "2627"]
[Annotator "NA"]
[PlyCount "138"]
[EventDate "2023.02.03"]
[EventType "swiss"]
[EventCountry "NET"]
[SourceTitle "playchess.com"]
[Source "ChessBase"]
[SourceQuality "1"]
[TimeControl "600+2"]

1. d4 {[%emt 0:00:04]} Nf6 {[%emt 0:00:03]} 2. c4 {[%emt 0:00:01]} e6 {[%emt 0:00:01]} 3. Nc3 {[%emt 0:00:01]} Bb4 {[%emt 0:00:01]} 4. Qc2 {[%emt 0:00:01]} Nc6 {[%emt 0:00:01]} 5. e3 {[%emt 0:00:00]} O-O {[%emt 0:00:01]} 6. Nge2 {[%emt 0:00:02]} e5 {[%emt 0:00:16]} 7. d5 {[%emt 0:00:04]} Nb8 {[%emt 0:00:10]} 8. a3 {[%emt 0:00:02]} Bxc3+ {[%emt 0:00:12]} 9. Nxc3 {[%emt 0:00:00]} a5 {[%emt 0:00:01]} 10. e4 {[%emt 0:00:03]} Na6 {[%emt 0:00:03]} 11. Be2 {[%emt 0:00:06]} d6 {[%emt 0:00:09]} 12. Rb1 {[%emt 0:00:02]} c6 {[%emt 0:00:09]} 13. O-O {[%emt 0:00:15]} Bd7 {[%emt 0:00:08]} 14. b4 {[%emt 0:00:11]} axb4 {[%emt 0:00:04]} 15. axb4 {[%emt 0:00:00]} cxd5 {[%emt 0:00:01]} 16. cxd5 {[%emt 0:00:13]} Rc8 {[%emt 0:00:52]} 17. Bd2 {[%emt 0:00:02]} Bg4 {[%emt 0:00:52]} 18. Bd3 {[%emt 0:00:09]} Nh5 {[%emt 0:00:15]} 19. Be3 {[%emt 0:00:49]} Nf4 {[%emt 0:00:06]} 20. f3 {[%emt 0:00:01]} Nxd3 {[%emt 0:00:12]} 21. Qxd3 {[%emt 0:00:03]} Bd7 {[%emt 0:00:01]} 22. Rfc1 {[%emt 0:00:17]} Qe7 {[%emt 0:00:35]} 23. Rc2 {[%emt 0:01:02]} h6 {[%emt 0:00:20]} 24. Ra2 {[%emt 0:00:33]} f5 {[%emt 0:00:34]} 25. exf5 {[%emt 0:00:23]} Bxf5 {[%emt 0:00:00]} 26. Ne4 {[%emt 0:00:02]} Qc7 {[%emt 0:00:08]} 27. Rbb2 {[%emt 0:00:36]} Ra8 {[%emt 0:01:29]} 28. Ra3 {[%emt 0:00:36]} Bxe4 {[%emt 0:00:17]} 29. fxe4 {[%emt 0:00:16]} Rac8 {[%emt 0:00:01]} 30. h3 {[%emt 0:00:09]} Qc4 {[%emt 0:00:40]} 31. Qb1 {[%emt 0:00:36]} Nc7 {[%emt 0:00:16]} 32. Rc2 {[%emt 0:00:02]} Qxe4 {[%emt 0:00:12]} 33. Qc1 {[%emt 0:00:01]} Rf7 {[%emt 0:00:09]} 34. Kh2 {[%emt 0:00:22]} Kh7 {[%emt 0:00:38]} 35. Rc4 {[%emt 0:00:15]} Qf5 {[%emt 0:01:21]} 36. Rac3 {[%emt 0:00:04]} Nxd5 {[%emt 0:00:04]} 37. Rxc8 {[%emt 0:00:05]} Nxc3 {[%emt 0:00:01]} 38. Rxc3 {[%emt 0:00:13]} d5 {[%emt 0:00:01]} 39. Rc5 {[%emt 0:00:08]} Qe4 {[%emt 0:00:09]} 40. Qd2 {[%emt 0:00:18]} d4 {[%emt 0:00:17]} 41. Bf2 {[%emt 0:00:01]} Rf5 {[%emt 0:00:05]} 42. Bg3 {[%emt 0:00:06]} Rg5 {[%emt 0:00:03]} 43. h4 {[%emt 0:00:26]} Rf5 {[%emt 0:00:06]} 44. Qe1 {[%emt 0:00:23]} Qxe1 {[%emt 0:00:10]} 45. Bxe1 {[%emt 0:00:00]} Kg6 {[%emt 0:00:02]} 46. Rb5 {[%emt 0:00:06]} e4 {[%emt 0:00:05]} 47. Rb6+ {[%emt 0:00:02]} Rf6 {[%emt 0:00:11]} 48. Rxb7 {[%emt 0:00:11]} Rf1 {[%emt 0:00:01]} 49. Bg3 {[%emt 0:00:11]} e3 {[%emt 0:00:01]} 50. Rd7 {[%emt 0:00:05]} Rd1 {[%emt 0:00:03]} 51. Be5 {[%emt 0:00:45]} e2 {[%emt 0:00:02]} 52. g4 {[%emt 0:00:01]} Rh1+ {[%emt 0:00:01]} 53. Kg2 {[%emt 0:00:08]} Rg1+ {[%emt 0:00:01]} 54. Kf3 {[%emt 0:00:02]} Rxg4 {[%emt 0:00:04]} 55. Kxe2 {[%emt 0:00:40]} Re4+ {[%emt 0:00:02]} 56. Kd3 {[%emt 0:00:01]} Rxe5 {[%emt 0:00:00]} 57. Rxd4 {[%emt 0:00:01]} Kh5 {[%emt 0:00:03]} 58. Kc4 {[%emt 0:00:04]} g5 {[%emt 0:00:01]} 59. hxg5 {[%emt 0:00:01]} hxg5 {[%emt 0:00:00]} 60. b5 {[%emt 0:00:01]} Re8 {[%emt 0:00:01]} 61. b6 {[%emt 0:00:08]} g4 {[%emt 0:00:02]} 62. Kb5 {[%emt 0:00:02]} g3 {[%emt 0:00:02]} 63. b7 {[%emt 0:00:06]} g2 {[%emt 0:00:04]} 64. Rd1 {[%emt 0:00:02]} Kg4 {[%emt 0:00:01]} 65. Kb6 {[%emt 0:00:05]} Rb8 {[%emt 0:00:00]} 66. Kc7 {[%emt 0:00:03]} Rxb7+ {[%emt 0:00:01]} 67. Kxb7 {[%emt 0:00:00]} Kf3 {[%emt 0:00:01]} 68. Rg1 {[%emt 0:00:01]} Kf2 {[%emt 0:00:00]} 69. Rxg2+ {[%emt 0:00:01]} Kxg2 {[%emt 0:00:00]} 1/2-1/2

[Event "CCT Airthings Masters Play-In 2023"]
[Site "Online"]
[Date "2023.02.03"]
[Round "1"]
[White "promen"]
[Black "Vidit, Santosh Gujrathi"]
[Result "1/2-1/2"]
[ECO "D02"]
[WhiteElo "2526"]
[BlackElo "2730"]
[Annotator "TA"]
[PlyCount "175"]
[EventDate "2023.02.03"]
[EventType "swiss"]
[EventCountry "NET"]
[SourceTitle "playchess.com"]
[Source "ChessBase"]
[SourceQuality "1"]
[TimeControl "600+2"]

{[%evp 11,175,-5,21,3,8,0,0,0,0,0,11,0,12,3,12,0,0,0,0,0,0,0,0,0,15,8,5,0,-7,-1,6,8,9,2,9,0,0,0,0,0,18,21,18,13,25,0,50,0,0,-3,-3,-15,0,-14,0,0,0,0,0,0,0,0,0,0,0,0,0,-255,-237,-251,-251,-256,-172,-172,-172,-129,-82,-79,-84,-97,-50,-68,-61,-60,-72,-66,-62,-94,-94,-90,-77,-91,-91,-140,-95,-155,-95,-94,-49,-135,-135,-135,-135,-135,-135,-135,-135,-212,-192,-187,-59,-262,-262,-262,-255,-255,-255,-243,-239,-241,-219,-205,-202,-204,-160,-220,-237,-262,-226,-183,0,-893,-815,-12844,-12844,-12845,-12845,-12845,-12846,-12850,0,0,0,0,0,0,0,0,0,0,0,0,0,0,0,0,0,0,0,0,0,0,0,0,0,0]} 1. Nf3 {[%emt 0:00:06]} d5 {[%emt 0:00:09]} 2. g3 {[%emt 0:00:04]} g6 {[%emt 0:00:21]} 3. Bg2 {[%emt 0:00:03]} Bg7 {[%emt 0:00:02]} 4. d4 {[%emt 0:00:02]} Nf6 {[%emt 0:00:01]} 5. O-O {[%emt 0:00:03]} O-O {[%emt 0:00:02]} 6. c3 {[%emt 0:00:05]} c6 {[%emt 0:00:17]} 7. a4 {[%emt 0:00:05] D02: 1 d4 d5 2 Nf3 sidelines, including 2...Nf6 3 g3 and 2...Nf6 3 Bf4.} a5 {[%emt 0:00:17]} 8. Nbd2 {[%emt 0:00:03]} Re8 {[%emt 0:00:34]} 9. Re1 {[%emt 0:00:27]} Bf5 {[%emt 0:00:29]} 10. Nh4 {[%emt 0:00:04] [#]} Bg4 $146 {[%emt 0:00:24]} ({Predecessor:} 10... Be6 11. e4 dxe4 12. Nxe4 Nxe4 13. Bxe4 Bd5 14. Bxd5 Qxd5 15. Ng2 Nd7 16. Ne3 Qd6 17. Nc4 Qd5 18. Ne3 Qd6 19. Nc4 Qd5 20. Ne3 Qd6 21. Nc4 {½-½ Gabrielian,A (2576)-Panarin,M (2558) RUS-chT2 Sochi 2015 (5.5)}) 11. h3 {[%emt 0:00:04]} Be6 {[%emt 0:00:01]} 12. Nhf3 {[%emt 0:00:01]} h6 {[%emt 0:00:14] Wards off Ng5} 13. Ne5 {[%emt 0:01:01]} Nbd7 {[%emt 0:00:10]} 14. Nd3 {[%emt 0:00:03]} Bf5 {[%emt 0:00:22]} 15. g4 {[%emt 0:00:34]} Bxd3 {[%emt 0:01:33]} 16. exd3 {[%emt 0:00:00]} e5 {[%emt 0:00:01]} 17. dxe5 {[%emt 0:00:03]} Nxe5 {[%emt 0:00:00]} 18. Nb3 {[%emt 0:00:02]} Ned7 {[%emt 0:01:05]} 19. Be3 {[%emt 0:00:21]} Qc7 {[%emt 0:00:06]} 20. Qd2 {[%emt 0:00:17]} Kh7 {[%emt 0:00:07]} 21. Re2 {[%emt 0:00:48]} Re7 {[%emt 0:00:20]} 22. Rae1 {[%emt 0:00:06]} Rae8 {[%emt 0:00:02]} 23. Bd4 {[%emt 0:01:50]} Rxe2 {[%emt 0:00:15]} 24. Rxe2 {[%emt 0:00:00]} Rxe2 {[%emt 0:00:33]} 25. Qxe2 {[%emt 0:00:00]} Bf8 {[%emt 0:00:10]} 26. Qf3 {[%emt 0:00:16]} Bg7 {[%emt 0:00:19]} 27. Be3 {[%emt 0:01:46]} Bf8 {[%emt 0:00:42]} 28. Bd4 {[%emt 0:00:07]} Be7 {[%emt 0:00:26]} ({Black should play} 28... Bg7 $11) 29. h4 {[%emt 0:00:48]} (29. c4 $14) 29... Kg8 $1 $11 {[%emt 0:00:13]} ({Don't play} 29... Ne5 30. Qf4 Nfd7 31. Qg3 $16) 30. Bh3 {[%emt 0:00:02]} Nh7 {[%emt 0:00:18]} 31. Qg3 {[%emt 0:00:44]} Qd8 {[%emt 0:00:30]} (31... Bd6 {feels hotter.} 32. Qe3 g5 33. Qe8+ Nhf8) 32. h5 {[%emt 0:00:01]} Ng5 {[%emt 0:00:10]} 33. hxg6 {[%emt 0:00:05]} fxg6 {[%emt 0:00:02]} 34. Bg2 {[%emt 0:00:01]} Ne6 {[%emt 0:00:06]} 35. Qe3 {[%emt 0:00:02]} Nxd4 {[%emt 0:00:23]} 36. Nxd4 {[%emt 0:00:01][%cal Od4e6]} Bg5 {[%emt 0:00:19]} 37. f4 {[%emt 0:00:49]} Qe7 {[%emt 0:00:01]} 38. Qxe7 {[%emt 0:00:06]} Bxe7 {[%emt 0:00:00][%mdl 4096] Endgame KBN-KBN} 39. Ne6 {[%emt 0:00:09][%mdl 8192]} (39. Nb3 $1 $11 {and White has nothing to worry.}) 39... Kf7 $19 {[%emt 0:00:02]} 40. f5 {[%emt 0:00:04]} Ne5 {[%emt 0:00:10][%csl LRd3,LRg4]} 41. Nf4 {[%emt 0:00:08]} gxf5 {[%emt 0:00:02]} (41... Nxg4 42. fxg6+ Kg7 43. Bh3 $15) 42. gxf5 {[%emt 0:00:01]} Bg5 {[%emt 0:00:01]} 43. d4 {[%emt 0:00:00]} Nc4 {[%emt 0:00:04]} (43... Bxf4 $142 44. dxe5 Bxe5) 44. Nd3 $17 {[%emt 0:00:01]} Kf6 {[%emt 0:00:02]} 45. Bh3 {[%emt 0:00:02]} Bh4 {[%emt 0:00:03]} (45... h5 $17) 46. Kg2 {[%emt 0:00:01]} Ne3+ {[%emt 0:00:02]} 47. Kf3 {[%emt 0:00:01]} Nxf5 {[%emt 0:00:01]} 48. Nc5 {[%emt 0:00:01]} Nd6 {[%emt 0:00:01]} 49. Nd7+ {[%emt 0:00:03]} Ke7 {[%emt 0:00:01]} 50. Ne5 {[%emt 0:00:01] [#] Threatens to win with Ng6+.} Bg5 {[%emt 0:00:00]} 51. Nd3 {[%emt 0:00:02]} Nc4 {[%emt 0:00:04]} 52. Bc8 {[%emt 0:00:02]} (52. Ke2 $142) 52... b6 {[%emt 0:00:00]} 53. Bf5 {[%emt 0:00:04]} (53. Ke2 $142) 53... Kd6 {[%emt 0:00:01]} ({Better is} 53... b5 54. axb5 cxb5) 54. Ke2 {[%emt 0:00:01]} c5 {[%emt 0:00:04]} 55. b3 {[%emt 0:00:02]} (55. dxc5+ $15 bxc5 56. b4) 55... Ne3 {[%emt 0:00:01]} 56. dxc5+ {[%emt 0:00:04]} bxc5 {[%emt 0:00:00]} 57. Bg6 {[%emt 0:00:01]} c4 {[%emt 0:00:08]} 58. bxc4 {[%emt 0:00:02]} Nxc4 {[%emt 0:00:00]} 59. Be8 {[%emt 0:00:01]} (59. Nf2 $17 {was worth a try.}) 59... Bf6 $19 {[%emt 0:00:01]} 60. Nf4 {[%emt 0:00:07]} Bxc3 {[%emt 0:00:02]} (60... Be5 $19 61. Ng2 Bxc3) 61. Bf7 $2 {[%emt 0:00:00]} (61. Kd3 $1 $15 Ke5 62. Nxd5 (62. Ng6+ Kf6 $17)) 61... Nb6 {[%emt 0:00:01]} 62. Be8 {[%emt 0:00:03]} Be5 {[%emt 0:00:01]} 63. Nd3 {[%emt 0:00:01]} Bf6 {[%emt 0:00:04]} 64. Kf3 {[%emt 0:00:03]} Nc4 {[%emt 0:00:01]} 65. Kf4 {[%emt 0:00:02]} Bg5+ {[%emt 0:00:02]} 66. Kf5 {[%emt 0:00:00]} Ne3+ {[%emt 0:00:02]} 67. Kg6 {[%emt 0:00:02]} d4 {[%emt 0:00:01]} 68. Bb5 {[%emt 0:00:01]} (68. Bf7 $17) 68... Kd5 {[%emt 0:00:02]} 69. Kh5 {[%emt 0:00:01]} Ke4 {[%emt 0:00:02]} 70. Nc5+ {[%emt 0:00:01]} Kd5 $2 {[%emt 0:00:00]} (70... Ke5 $19 {...Nd1 would be deadly.} 71. Nb7 Nd5) 71. Nb7 $2 {[%emt 0:00:01][%mdl 8192]} (71. Nd3 $11) 71... Nc4 {[%emt 0:00:03]} 72. Bxc4+ {[%emt 0:00:04]} Kxc4 {[%emt 0:00:00]} 73. Nxa5+ {[%emt 0:00:00] KB-KN} Kc3 {[%emt 0:00:04]} 74. Nb7 {[%emt 0:00:09]} Kb4 {[%emt 0:00:09]} 75. Nd6 {[%emt 0:00:01]} d3 $2 {[%emt 0:00:02]} ({Black should try} 75... Kxa4 $19 76. Nc4 Kb3) 76. Ne4 $11 {[%emt 0:00:03] The position is equal.} Ka5 {[%emt 0:00:03]} 77. Kg4 {[%emt 0:00:01]} Be7 {[%emt 0:00:02]} 78. Kf3 {[%emt 0:00:01]} Kxa4 {[%emt 0:00:01] [#] Strongly threatening ...Kb3.} 79. Ke3 {[%emt 0:00:01]} Kb3 {[%emt 0:00:00]} 80. Kxd3 {[%emt 0:00:00]} h5 {[%emt 0:00:01]} 81. Ke2 {[%emt 0:00:00]} h4 {[%emt 0:00:00]} 82. Kf3 {[%emt 0:00:00]} Kc4 {[%emt 0:00:00]} 83. Nf2 {[%emt 0:00:02]} Kd5 {[%emt 0:00:02]} 84. Nh3 {[%emt 0:00:01]} Ke6 {[%emt 0:00:01]} 85. Kg2 {[%emt 0:00:00]} Kf5 {[%emt 0:00:01]} 86. Ng1 {[%emt 0:00:01]} Bf6 {[%emt 0:00:00]} 87. Nf3 {[%emt 0:00:01]} Kg4 {[%emt 0:00:01]} 88. Nxh4 {[%emt 0:00:01] And White is the lucky defender.   Weighted Error Value: White=0.18 (very precise) /Black=0.14 (very precise)} 1/2-1/2

[Event "CCT Airthings Masters Play-In 2023"]
[Site "Online"]
[Date "2023.02.03"]
[Round "1"]
[White "BogdanDeac"]
[Black "ChessWarrior"]
[Result "*"]
[ECO "E11"]
[WhiteElo "2522"]
[BlackElo "2655"]
[Annotator "TA"]
[PlyCount "36"]
[EventDate "2023.02.03"]
[EventType "swiss"]
[EventCountry "NET"]
[SourceTitle "playchess.com"]
[Source "ChessBase"]
[SourceQuality "1"]
[TimeControl "600+2"]

{[%evp 16,36,12,6,11,20,15,13,14,10,23,0,0,0,0,0,0,0,0,0,0,-7,13]} 1. d4 {[%emt 0:00:04]} Nf6 {[%emt 0:00:35]} 2. c4 {[%emt 0:00:01]} e6 {[%emt 0:00:01]} 3. Nf3 {[%emt 0:00:02]} Bb4+ {[%emt 0:00:04]} 4. Bd2 {[%emt 0:00:04]} Bxd2+ {[%emt 0:00:09]} 5. Qxd2 {[%emt 0:00:01]} O-O {[%emt 0:00:03]} 6. Nc3 {[%emt 0:00:01]} d5 {[%emt 0:00:02]} 7. e3 {[%emt 0:00:01]} Qe7 {[%emt 0:00:01]} 8. cxd5 {[%emt 0:00:03]} exd5 {[%emt 0:00:01]} 9. Bd3 {[%emt 0:00:01]} b6 {[%emt 0:00:29] E11: Bogo-Indian.} 10. O-O {[%emt 0:00:09]} Bb7 {[%emt 0:00:02]} 11. Ne5 {[%emt 0:00:31]} c5 {[%emt 0:00:04]} 12. f4 {[%emt 0:00:01]} Nc6 {[%emt 0:00:20] [#]} 13. Bc2 $5 $146 {[%emt 0:00:10][%mdl 8] An interesting novelty.} ({Predecessor:} 13. a3 cxd4 14. exd4 Nxd4 15. Bxh7+ Kxh7 16. Qxd4 Qc5 17. Rfd1 Rac8 18. Qxc5 bxc5 19. Nb5 {0-1 Sebenik,M (2492)-Banusz,T (2631) EU-ch 21st Reykjavik 2021 (4)}) 13... Rad8 {[%emt 0:00:07] The position is equal.} 14. Rad1 {[%emt 0:00:11]} Nb4 {[%emt 0:00:10]} 15. Bb1 {[%emt 0:00:15]} Ne4 {[%emt 0:00:15]} 16. Nxe4 {[%emt 0:00:12]} dxe4 {[%emt 0:00:03]} 17. a3 {[%emt 0:00:10]} Na6 {[%emt 0:01:42]} 18. Qc3 {[%emt 0:00:35]} cxd4 {[%emt 0:00:04] Not much happened in this game.   Weighted Error Value: White=0.04 (flawless) /Black=0.00 (flawless)} *

[Event "CCT Airthings Masters Play-In 2023"]
[Site "Online"]
[Date "2023.02.03"]
[Round "1"]
[White "GroovyKettle"]
[Black "Grischuk, Alexander"]
[Result "*"]
[ECO "C70"]
[WhiteElo "2515"]
[BlackElo "2745"]
[Annotator "TA"]
[PlyCount "32"]
[EventDate "2023.02.03"]
[EventType "swiss"]
[EventCountry "NET"]
[SourceTitle "playchess.com"]
[Source "ChessBase"]
[SourceQuality "1"]
[TimeControl "600+2"]

{[%evp 9,32,33,41,27,38,42,41,38,40,33,35,37,40,50,26,24,11,-8,27,20,21,0,0,0,0]} 1. e4 {[%emt 0:00:04]} e5 {[%emt 0:00:23]} 2. Nf3 {[%emt 0:00:01]} Nc6 {[%emt 0:00:07]} 3. Bb5 {[%emt 0:00:02]} a6 {[%emt 0:00:01]} 4. Ba4 {[%emt 0:00:02]} Bc5 {[%emt 0:00:02]} 5. c3 {[%emt 0:00:03]} Nge7 {[%emt 0:00:02]} 6. d4 {[%emt 0:00:02] C70: Ruy Lopez: 3...a6 4 Ba4, Norwegian and Delayed Schliemann.} exd4 {[%emt 0:00:01]} 7. cxd4 {[%emt 0:00:00]} Bb4+ {[%emt 0:00:01]} 8. Bd2 {[%emt 0:00:01] White is slightly better.} Bxd2+ {[%emt 0:00:03]} 9. Qxd2 {[%emt 0:00:04]} d5 {[%emt 0:00:01]} 10. exd5 {[%emt 0:00:06]} Qxd5 {[%emt 0:00:01]} 11. Nc3 {[%emt 0:00:05]} Qe6+ {[%emt 0:00:31] [#]} 12. Ne5 $1 $146 {[%emt 0:00:15][%mdl 8] Strongly threatening Bb3. An important novelty.} ({Predecessor:} 12. Qe3 O-O 13. O-O Qd6 14. Bxc6 Nxc6 15. d5 Ne7 16. Rad1 Bg4 17. h3 Bh5 18. g4 {½-½ Sadhwani,R (2619)-Erigaisi,A (2681) MPL Indian Chess Tour N2 rapid 2022 (10)}) 12... O-O $1 {[%emt 0:00:19]} 13. f4 {[%emt 0:00:43] [#] d5 is the strong threat.} Nxe5 {[%emt 0:01:20]} 14. dxe5 {[%emt 0:00:19]} Qb6 {[%emt 0:00:41] The position is equal.} 15. h3 {[%emt 0:00:09]} Be6 {[%emt 0:00:29]} 16. O-O-O {[%emt 0:00:03]} c6 {[%emt 0:01:22] Weighted Error Value: White=0.07 (flawless) /Black=0.05 (flawless)} *

[Event "CCT Airthings Masters Play-In 2023"]
[Site "Online"]
[Date "2023.02.03"]
[Round "1"]
[White "Iniyan, P."]
[Black "Oleksandr_Bortnyk"]
[Result "*"]
[ECO "C41"]
[WhiteElo "2514"]
[BlackElo "2637"]
[Annotator "TA"]
[PlyCount "25"]
[EventDate "2023.02.03"]
[EventType "swiss"]
[EventCountry "NET"]
[SourceTitle "playchess.com"]
[Source "ChessBase"]
[SourceQuality "1"]
[TimeControl "600+2"]

{[%evp 15,25,0,18,18,17,17,14,16,46,0,28,-26]} 1. d4 {[%emt 0:00:10]} d6 {[%emt 0:00:19]} 2. Nf3 {[%emt 0:00:05]} Nf6 {[%emt 0:00:05]} 3. Nc3 {[%emt 0:00:03]} Nbd7 {[%emt 0:00:03]} 4. e4 {[%emt 0:00:02]} e5 {[%emt 0:00:01]} 5. Bc4 {[%emt 0:00:08]} Be7 {[%emt 0:00:02]} 6. O-O {[%emt 0:00:02]} c6 {[%emt 0:00:06]} 7. Qe2 {[%emt 0:00:29]} O-O {[%emt 0:00:22]} 8. a4 {[%emt 0:00:17]} a5 {[%emt 0:00:15]} 9. Ba2 {[%emt 0:01:10] C41: Philidor Defence.} exd4 {[%emt 0:00:19]} 10. Nxd4 {[%emt 0:00:01]} Nc5 {[%emt 0:00:00]} 11. Rd1 {[%emt 0:00:16]} Qb6 {[%emt 0:00:35] [#]} 12. Rb1 $146 {[%emt 0:01:14]} (12. f3 $14 {was preferrable.}) ({Predecessor:} 12. h3 Be6 13. Nxe6 fxe6 14. e5 Nd5 15. exd6 Bxd6 16. Nxd5 exd5 17. c4 Rae8 18. Be3 {0-1 Yu,S (2542)-Bauer,C (2599) FRA-CHN m Paris 2006 (3)}) 12... Re8 {[%emt 0:00:27]} (12... Be6 $5) 13. Qc4 {[%emt 0:00:11] A rather calm draw.   Weighted Error Value: White=0.14 (very precise) /Black=0.15 (very precise)} ({White should play} 13. f3) *

[Event "CCT Airthings Masters Play-In 2023"]
[Site "Online"]
[Date "2023.02.03"]
[Round "1"]
[White "Blomqvist, Erik"]
[Black "ChessLover"]
[Result "*"]
[ECO "B53"]
[WhiteElo "2510"]
[BlackElo "2577"]
[Annotator "TA"]
[PlyCount "34"]
[EventDate "2023.02.03"]
[EventType "swiss"]
[EventCountry "NET"]
[SourceTitle "playchess.com"]
[Source "ChessBase"]
[SourceQuality "1"]
[TimeControl "600+2"]

{[%evp 9,34,24,32,22,31,42,32,38,31,17,42,5,20,3,8,0,39,37,38,28,26,23,19,35,52,8,33]} 1. e4 {[%emt 0:00:08]} c5 {[%emt 0:00:05]} 2. Nf3 {[%emt 0:00:04]} d6 {[%emt 0:00:01]} 3. d4 {[%emt 0:00:05]} cxd4 {[%emt 0:00:00]} 4. Qxd4 {[%emt 0:00:02]} a6 {[%emt 0:00:01]} 5. Be2 {[%emt 0:00:02]} Nc6 {[%emt 0:00:03]} 6. Qe3 {[%emt 0:00:01] B53: Sicilian: 2...d6: Lines with Qxd4.} Bg4 {[%emt 0:00:01]} 7. O-O {[%emt 0:00:02]} g6 {[%emt 0:00:03]} 8. Rd1 {[%emt 0:00:37] White is slightly better.} Bg7 {[%emt 0:00:16]} 9. Nc3 {[%emt 0:00:08] [#]} Rc8 $146 {[%emt 0:00:44]} ({Predecessor:} 9... Bxf3 10. Bxf3 Nf6 11. g3 O-O 12. Bg2 Rc8 13. a3 b5 14. Qf4 Ne5 15. Qh4 Qd7 {1-0 Camacho Collados,J (2280)-Gormally,D (2553) UK-ch Blitz Leamington Spa 2022 (3)}) 10. Nd5 {[%emt 0:00:09]} Bxf3 {[%emt 0:01:04]} 11. Bxf3 {[%emt 0:00:03]} Ne5 {[%emt 0:00:09]} 12. c3 {[%emt 0:00:22]} Nf6 {[%emt 0:00:28]} (12... e6 $5 {[%cal Re6d5]} 13. Nb4 Nf6 $11) 13. Be2 {[%emt 0:00:22]} O-O {[%emt 0:00:10]} 14. Nxf6+ {[%emt 0:00:21]} Bxf6 {[%emt 0:00:00]} 15. f4 {[%emt 0:00:21]} Nc4 {[%emt 0:00:07]} 16. Qf2 {[%emt 0:00:07]} Qc7 {[%emt 0:00:08]} 17. a4 {[%emt 0:01:07]} Rfd8 {[%emt 0:00:06] Weighted Error Value: White=0.10 (very precise) /Black=0.09 (flawless)} *

[Event "CCT Airthings Masters Play-In 2023"]
[Site "Online"]
[Date "2023.02.03"]
[Round "1"]
[White "rpragchess"]
[Black "SahajGrover"]
[Result "*"]
[ECO "C60"]
[WhiteElo "2510"]
[BlackElo "2651"]
[Annotator "TA"]
[PlyCount "45"]
[EventDate "2023.02.03"]
[EventType "swiss"]
[EventCountry "NET"]
[SourceTitle "playchess.com"]
[Source "ChessBase"]
[SourceQuality "1"]
[TimeControl "600+2"]

{[%evp 18,31,34,22,31,28,37,24,35,45,41,15,38,27,23,21]} 1. e4 {[%emt 0:00:03]} e5 {[%emt 0:00:10]} 2. Nf3 {[%emt 0:00:02]} Nc6 {[%emt 0:00:01]} 3. Bb5 {[%emt 0:00:04]} a6 {[%emt 0:00:02]} 4. Ba4 {[%emt 0:00:01]} Nf6 {[%emt 0:00:02]} 5. O-O {[%emt 0:00:01]} d6 {[%emt 0:00:03]} 6. c3 {[%emt 0:00:14]} g6 {[%emt 0:00:03]} 7. d4 {[%emt 0:00:14]} Bd7 {[%emt 0:00:23]} 8. Re1 {[%emt 0:00:06]} Bg7 {[%emt 0:00:01]} 9. h3 {[%emt 0:00:10]} O-O {[%emt 0:00:02]} 10. Nbd2 {[%emt 0:00:12][%cal Bb1d2,Bd2f1,Bf1g3][%mdl 32]} Re8 {[%emt 0:01:00] C60: Ruy Lopez: Unusual Black 3rd moves and 3...g6.} 11. Bc2 {[%emt 0:00:03]} a5 {[%emt 0:00:01]} 12. Nf1 {[%emt 0:00:15]} a4 {[%emt 0:00:25]} 13. Ng3 {[%emt 0:00:17]} b5 {[%emt 0:00:11]} 14. Bd3 {[%emt 0:01:05]} Rb8 {[%emt 0:01:59]} 15. Bg5 {[%emt 0:00:13]} h6 {[%emt 0:00:02]} 16. Bd2 {[%emt 0:00:01] [#]   Weighted Error Value: White=0.10 (very precise) /Black=0.05 (flawless)} {Predecessor:} Na5 $146 17. b3 c5 18. b4 cxb4 19. cxb4 Nc4 20. Bxc4 bxc4 21. dxe5 dxe5 22. Qc1 Kh7 23. Qxc4 {1-0 Piorun,K (2608)-Gumularz,S (2515) Polish World Cup Qual rapid 2021 (5)} *

[Event "CCT Airthings Masters Play-In 2023"]
[Site "Online"]
[Date "2023.02.03"]
[Round "1"]
[White "Matibar"]
[Black "amintabatabaei"]
[Result "*"]
[ECO "B11"]
[WhiteElo "2499"]
[BlackElo "2649"]
[Annotator "TA"]
[PlyCount "28"]
[EventDate "2023.02.03"]
[EventType "swiss"]
[EventCountry "NET"]
[SourceTitle "playchess.com"]
[Source "ChessBase"]
[SourceQuality "1"]
[TimeControl "600+2"]

{[%evp 10,28,23,24,25,32,22,18,26,9,0,-7,0,-14,38,38,35,40,44,17,30]} 1. e4 {[%emt 0:00:09]} c6 {[%emt 0:00:05]} 2. Nf3 {[%emt 0:00:10]} d5 {[%emt 0:00:02]} 3. Nc3 {[%emt 0:00:03]} dxe4 {[%emt 0:00:04]} 4. Nxe4 {[%emt 0:00:00]} Nf6 {[%emt 0:00:01]} 5. Ng3 {[%emt 0:00:06][%cal Be4g3,Bg3e2,Be2c3][%mdl 32]} h5 {[%emt 0:00:02]} 6. h3 {[%emt 0:00:32]} h4 {[%emt 0:00:03] B11: Caro-Kann: Two Knights Variation.} 7. Ne2 {[%emt 0:00:01]} c5 {[%emt 0:00:11] [#]} 8. Nc3 $146 {[%emt 0:01:07]} ({Predecessor:} 8. d4 Nc6 9. Bg5 cxd4 10. Nexd4 Nxd4 11. Qxd4 Qxd4 12. Nxd4 Ne4 13. Be3 a6 14. Bd3 {0-1 Zhuravleva,O (2278)-Villegas,P (2367) Titled Tuesday intern op 29th Dec blitz 2020 (3)}) 8... Nc6 {[%emt 0:00:06] Inhibits d4.} 9. Bc4 {[%emt 0:00:02]} a6 {[%emt 0:00:27]} 10. a4 {[%emt 0:00:05]} Bf5 {[%emt 0:00:05]} 11. d3 {[%emt 0:00:02]} Nd4 {[%emt 0:00:53]} (11... Bg6 $1 $11) 12. O-O {[%emt 0:00:34]} e6 {[%emt 0:00:21]} 13. Re1 {[%emt 0:00:09]} Be7 {[%emt 0:00:05]} 14. Bg5 {[%emt 0:00:37]} Qc7 {[%emt 0:00:38] Weighted Error Value: White=0.08 (flawless) /Black=0.07 (flawless)} *